[Event "Live Chess"]
[Site "Chess.com"]
[Date "2023.05.20"]
[Round "-"]
[White "Ninifu"]
[Black "Singapourfeuj"]
[Result "0-1"]
[WhiteElo "1991"]
[BlackElo "2238"]
[TimeControl "300"]
[EndTime "11:26:50 PDT"]
[Termination "Singapourfeuj won on time"]

1. d4 {[%clk 0:04:56.2]} 1... Nf6 {[%clk 0:04:58.5]} 2. c4 {[%clk 0:04:55.2]}
2... g6 {[%clk 0:04:57.4]} 3. Nc3 {[%clk 0:04:53.9]} 3... Bg7 {[%clk 0:04:56.7]}
4. e4 {[%clk 0:04:52.6]} 4... d6 {[%clk 0:04:55.6]} 5. f4 {[%clk 0:04:52.1]}
5... O-O {[%clk 0:04:54.1]} 6. Nf3 {[%clk 0:04:51.7]} 6... c5 {[%clk 0:04:53.4]}
7. d5 {[%clk 0:04:51.2]} 7... e6 {[%clk 0:04:52.1]} 8. Be2 {[%clk 0:04:50.5]}
8... exd5 {[%clk 0:04:51.3]} 9. cxd5 {[%clk 0:04:49.9]} 9... Bg4 {[%clk
0:04:49.9]} 10. O-O {[%clk 0:04:47.8]} 10... Re8 {[%clk 0:04:48.6]} 11. h3
{[%clk 0:04:43.6]} 11... Bxf3 {[%clk 0:04:47.6]} 12. Bxf3 {[%clk 0:04:43]} 12...
Nbd7 {[%clk 0:04:46.3]} 13. Be3 {[%clk 0:04:25.7]} 13... b5 {[%clk 0:04:40.7]}
14. Qc2 {[%clk 0:04:17.6]} 14... b4 {[%clk 0:04:36.5]} 15. Nb5 {[%clk
0:04:12.3]} 15... Qb6 {[%clk 0:04:31.1]} 16. Nxd6 {[%clk 0:03:35.1]} 16... Qxd6
{[%clk 0:04:28.1]} 17. e5 {[%clk 0:03:32.9]} 17... Nxe5 {[%clk 0:04:26]} 18.
fxe5 {[%clk 0:03:32]} 18... Qxe5 {[%clk 0:04:24.9]} 19. Bxc5 {[%clk 0:03:19.5]}
19... Rac8 {[%clk 0:04:21.3]} 20. Qf2 {[%clk 0:03:06.2]} 20... Nd7 {[%clk
0:04:17.6]} 21. Rae1 {[%clk 0:02:36.4]} 21... Qxb2 {[%clk 0:04:11.7]} 22. Rxe8+
{[%clk 0:02:18]} 22... Rxe8 {[%clk 0:04:10.1]} 23. Qxb2 {[%clk 0:02:10.7]} 23...
Bxb2 {[%clk 0:04:08.7]} 24. Bxb4 {[%clk 0:02:07]} 24... Bd4+ {[%clk 0:04:07.1]}
25. Kh1 {[%clk 0:02:04.8]} 25... f5 {[%clk 0:04:06]} 26. Re1 {[%clk 0:01:45.5]}
26... Rxe1+ {[%clk 0:04:03.5]} 27. Bxe1 {[%clk 0:01:43.9]} 27... Ne5 {[%clk
0:04:02.6]} 28. Bd1 {[%clk 0:01:34.1]} 28... Nd3 {[%clk 0:03:57.4]} 29. Bh4
{[%clk 0:00:08.5]} 29... g5 {[%clk 0:03:55.1]} 30. Bc2 {[%clk 0:00:01.3]} 30...
Nb4 {[%clk 0:03:52.2]} 0-1

[Event "Live Chess"]
[Site "Chess.com"]
[Date "2023.05.20"]
[Round "-"]
[White "MJMykh"]
[Black "Davidagye"]
[Result "0-1"]
[WhiteElo "1033"]
[BlackElo "1675"]
[TimeControl "300"]
[EndTime "11:26:51 PDT"]
[Termination "Davidagye won by checkmate"]

1. e4 {[%clk 0:04:57.7]} 1... e5 {[%clk 0:04:59.1]} 2. Nf3 {[%clk 0:04:51.5]}
2... Nc6 {[%clk 0:04:57.8]} 3. Nc3 {[%clk 0:04:48.6]} 3... Nf6 {[%clk
0:04:53.1]} 4. Bc4 {[%clk 0:04:47.3]} 4... Nxe4 {[%clk 0:04:51.9]} 5. Nxe4
{[%clk 0:04:46.1]} 5... d5 {[%clk 0:04:51]} 6. Bd3 {[%clk 0:04:45.6]} 6... dxe4
{[%clk 0:04:48.9]} 7. Bxe4 {[%clk 0:04:44.5]} 7... Bd6 {[%clk 0:04:47.4]} 8.
Bxc6+ {[%clk 0:04:41]} 8... bxc6 {[%clk 0:04:46.4]} 9. O-O {[%clk 0:04:39.6]}
9... e4 {[%clk 0:04:45.8]} 10. Ne1 {[%clk 0:04:34.6]} 10... Qh4 {[%clk
0:04:45.2]} 11. h3 {[%clk 0:04:27.3]} 11... Bxh3 {[%clk 0:04:39.9]} 12. f3
{[%clk 0:04:08.1]} 12... Bc5+ {[%clk 0:04:36.3]} 13. Kh2 {[%clk 0:04:03.5]}
13... Bg4# {[%clk 0:04:35.4]} 0-1

[Event "Live Chess"]
[Site "Chess.com"]
[Date "2023.05.20"]
[Round "-"]
[White "seuen"]
[Black "LGC4YOU"]
[Result "0-1"]
[WhiteElo "1141"]
[BlackElo "1185"]
[TimeControl "300"]
[EndTime "11:27:05 PDT"]
[Termination "LGC4YOU won by checkmate"]

1. e4 {[%clk 0:04:59.3]} 1... c5 {[%clk 0:04:58.6]} 2. c4 {[%clk 0:04:57.7]}
2... Nc6 {[%clk 0:04:58.5]} 3. Nc3 {[%clk 0:04:53.5]} 3... e6 {[%clk 0:04:57.8]}
4. d3 {[%clk 0:04:48.8]} 4... Nge7 {[%clk 0:04:56.4]} 5. Be2 {[%clk 0:04:48.3]}
5... a6 {[%clk 0:04:53.8]} 6. Nf3 {[%clk 0:04:47.5]} 6... g6 {[%clk 0:04:51.4]}
7. Be3 {[%clk 0:04:47]} 7... b6 {[%clk 0:04:49.1]} 8. O-O {[%clk 0:04:45.2]}
8... Bg7 {[%clk 0:04:48]} 9. Qd2 {[%clk 0:04:41.5]} 9... O-O {[%clk 0:04:46.8]}
10. Bh6 {[%clk 0:04:40]} 10... f5 {[%clk 0:04:41.6]} 11. Bxg7 {[%clk 0:04:37.7]}
11... Kxg7 {[%clk 0:04:40.6]} 12. e5 {[%clk 0:04:26.7]} 12... Qc7 {[%clk
0:04:34.4]} 13. Qg5 {[%clk 0:04:25.8]} 13... Rf7 {[%clk 0:04:27.3]} 14. Qg3
{[%clk 0:04:02.9]} 14... Bb7 {[%clk 0:04:23.8]} 15. Ng5 {[%clk 0:04:00.5]} 15...
Rff8 {[%clk 0:04:18.6]} 16. Qh4 {[%clk 0:03:58.6]} 16... Rh8 {[%clk 0:04:17.6]}
17. Nf3 {[%clk 0:03:55.3]} 17... Nxe5 {[%clk 0:04:14.6]} 18. Qxe7+ {[%clk
0:03:51.4]} 18... Kh6 {[%clk 0:04:05.3]} 19. Qg5+ {[%clk 0:03:41.3]} 19... Kg7
{[%clk 0:03:59.4]} 20. Nxe5 {[%clk 0:03:32.2]} 20... Qxe5 {[%clk 0:03:58.1]} 21.
Rfe1 {[%clk 0:03:31.3]} 21... Rae8 {[%clk 0:03:51.9]} 22. Bf3 {[%clk 0:03:16.7]}
22... Qc7 {[%clk 0:03:43.4]} 23. Bxb7 {[%clk 0:03:04.3]} 23... Qxb7 {[%clk
0:03:43.3]} 24. Rad1 {[%clk 0:03:03.4]} 24... h6 {[%clk 0:03:34.8]} 25. Qg3
{[%clk 0:02:50.1]} 25... h5 {[%clk 0:03:31]} 26. Qe5+ {[%clk 0:02:39.9]} 26...
Kf7 {[%clk 0:03:26.9]} 27. d4 {[%clk 0:02:37.2]} 27... cxd4 {[%clk 0:03:10.6]}
28. Qxd4 {[%clk 0:02:35.1]} 28... h4 {[%clk 0:03:08.7]} 29. Qxd7+ {[%clk
0:02:32.3]} 29... Qxd7 {[%clk 0:03:05.7]} 30. Rxd7+ {[%clk 0:02:32.2]} 30... Kf6
{[%clk 0:03:03]} 31. Rd6 {[%clk 0:02:23.4]} 31... h3 {[%clk 0:02:56.8]} 32. Nd5+
{[%clk 0:02:16.2]} 32... Kg5 {[%clk 0:02:53.7]} 33. Rdxe6 {[%clk 0:02:08.6]}
33... Rd8 {[%clk 0:02:40.4]} 34. g3 {[%clk 0:01:48.7]} 34... b5 {[%clk
0:02:32.4]} 35. b3 {[%clk 0:01:47.1]} 35... bxc4 {[%clk 0:02:28.7]} 36. bxc4
{[%clk 0:01:47]} 36... Rb8 {[%clk 0:02:25]} 37. Rxa6 {[%clk 0:01:44.4]} 37...
Rb2 {[%clk 0:02:23.8]} 38. a4 {[%clk 0:01:42.3]} 38... Rc8 {[%clk 0:02:18.1]}
39. Rc1 {[%clk 0:01:29.1]} 39... Re2 {[%clk 0:02:13.7]} 40. Kf1 {[%clk
0:01:22.5]} 40... Rce8 {[%clk 0:02:09.4]} 41. Ne3 {[%clk 0:01:16.1]} 41... Rd2
{[%clk 0:02:00.2]} 42. c5 {[%clk 0:01:09.2]} 42... f4 {[%clk 0:01:54.4]} 43.
gxf4+ {[%clk 0:00:49.1]} 43... Kxf4 {[%clk 0:01:52.9]} 44. c6 {[%clk 0:00:47.9]}
44... Rxe3 {[%clk 0:01:22.6]} 45. fxe3+ {[%clk 0:00:46.2]} 45... Kxe3 {[%clk
0:01:22.5]} 46. Re1+ {[%clk 0:00:39.4]} 46... Kf3 {[%clk 0:01:18.9]} 47. Rc1
{[%clk 0:00:30.6]} 47... Rxh2 {[%clk 0:01:17.6]} 48. c7 {[%clk 0:00:25.7]} 48...
Rh1# {[%clk 0:01:15.5]} 0-1

[Event "Live Chess"]
[Site "Chess.com"]
[Date "2023.05.20"]
[Round "-"]
[White "GEMdzq"]
[Black "zdanevych"]
[Result "1-0"]
[WhiteElo "2203"]
[BlackElo "1542"]
[TimeControl "300"]
[EndTime "11:27:11 PDT"]
[Termination "GEMdzq won by resignation"]

1. e4 {[%clk 0:04:56.6]} 1... c5 {[%clk 0:04:59]} 2. d4 {[%clk 0:04:55.4]} 2...
cxd4 {[%clk 0:04:57.7]} 3. c3 {[%clk 0:04:55]} 3... dxc3 {[%clk 0:04:56.5]} 4.
Nxc3 {[%clk 0:04:54.9]} 4... e5 {[%clk 0:04:55.8]} 5. Bc4 {[%clk 0:04:52.5]}
5... Nf6 {[%clk 0:04:53.4]} 6. Nf3 {[%clk 0:04:51.4]} 6... h6 {[%clk 0:04:50.4]}
7. Nxe5 {[%clk 0:04:48.6]} 7... Qe7 {[%clk 0:04:45.4]} 8. Nxf7 {[%clk
0:04:27.5]} 8... Nxe4 {[%clk 0:04:42.2]} 9. O-O {[%clk 0:04:16.5]} 9... Nc6
{[%clk 0:04:33.6]} 10. Nxe4 {[%clk 0:04:14.9]} 10... d6 {[%clk 0:04:27.6]} 11.
Nexd6+ {[%clk 0:04:13.3]} 1-0

[Event "Live Chess"]
[Site "Chess.com"]
[Date "2023.05.20"]
[Round "-"]
[White "Richardallis"]
[Black "YF22Raptor"]
[Result "1-0"]
[WhiteElo "1685"]
[BlackElo "1017"]
[TimeControl "300"]
[EndTime "11:27:16 PDT"]
[Termination "Richardallis won by resignation"]

1. d4 {[%clk 0:04:50.6]} 1... d5 {[%clk 0:04:57.4]} 2. Nf3 {[%clk 0:04:49.8]}
2... c6 {[%clk 0:04:56.5]} 3. c3 {[%clk 0:04:48.2]} 3... Bg4 {[%clk 0:04:55.3]}
4. Bg5 {[%clk 0:04:47.5]} 4... Bxf3 {[%clk 0:04:52.9]} 5. exf3 {[%clk
0:04:45.7]} 5... h6 {[%clk 0:04:52]} 6. Bh4 {[%clk 0:04:44.7]} 6... g5 {[%clk
0:04:51.6]} 7. Bg3 {[%clk 0:04:43.8]} 7... Nf6 {[%clk 0:04:51.2]} 8. Nd2 {[%clk
0:04:42.4]} 8... Bg7 {[%clk 0:04:50.8]} 9. Bd3 {[%clk 0:04:41.5]} 9... e6 {[%clk
0:04:48.2]} 10. Rc1 {[%clk 0:04:40.8]} 10... Nbd7 {[%clk 0:04:45.4]} 11. O-O
{[%clk 0:04:39.7]} 11... b6 {[%clk 0:04:33.1]} 12. Re1 {[%clk 0:04:38.4]} 12...
c5 {[%clk 0:04:31.1]} 13. Bb1 {[%clk 0:04:35]} 13... c4 {[%clk 0:04:28.5]} 14.
Qc2 {[%clk 0:04:32.3]} 14... b5 {[%clk 0:04:24.4]} 15. a3 {[%clk 0:04:24]} 15...
a5 {[%clk 0:04:21.4]} 16. f4 {[%clk 0:04:16.6]} 16... gxf4 {[%clk 0:04:12.5]}
17. Bxf4 {[%clk 0:04:15.3]} 17... a4 {[%clk 0:04:09]} 18. Qf5 {[%clk 0:04:04.4]}
18... O-O {[%clk 0:04:01.8]} 19. Qc2 {[%clk 0:04:00.3]} 19... Re8 {[%clk
0:03:35]} 20. Re3 {[%clk 0:03:58.3]} 20... e5 {[%clk 0:03:30.8]} 21. dxe5 {[%clk
0:03:55.5]} 21... Nxe5 {[%clk 0:03:23.5]} 22. Bxe5 {[%clk 0:03:51.5]} 22... Rxe5
{[%clk 0:03:22.1]} 23. Rxe5 {[%clk 0:03:49.9]} 23... Qd6 {[%clk 0:03:19.4]} 24.
Nf3 {[%clk 0:03:46.1]} 24... Ne4 {[%clk 0:03:11.6]} 25. Rf5 {[%clk 0:03:44.6]}
25... Ng5 {[%clk 0:02:54.7]} 26. Nxg5 {[%clk 0:03:42]} 26... hxg5 {[%clk
0:02:53.4]} 27. Rxg5 {[%clk 0:03:39.7]} 27... Kf8 {[%clk 0:02:49.8]} 28. Re1
{[%clk 0:03:34.5]} 28... Qf6 {[%clk 0:02:45.8]} 29. Qf5 {[%clk 0:03:29]} 29...
Ra6 {[%clk 0:02:37.7]} 30. Qc8+ {[%clk 0:03:24.8]} 1-0

[Event "Live Chess"]
[Site "Chess.com"]
[Date "2023.05.20"]
[Round "-"]
[White "Duke_of_Bebington"]
[Black "JoshMcK"]
[Result "0-1"]
[WhiteElo "1573"]
[BlackElo "1536"]
[TimeControl "300"]
[EndTime "11:27:19 PDT"]
[Termination "JoshMcK won by checkmate"]

1. e4 {[%clk 0:04:58]} 1... c6 {[%clk 0:04:57]} 2. d4 {[%clk 0:04:56]} 2... d5
{[%clk 0:04:55.3]} 3. e5 {[%clk 0:04:55.3]} 3... c5 {[%clk 0:04:51.7]} 4. c3
{[%clk 0:04:53.5]} 4... Nc6 {[%clk 0:04:48.1]} 5. Ne2 {[%clk 0:04:50.7]} 5...
cxd4 {[%clk 0:04:38.8]} 6. cxd4 {[%clk 0:04:50.6]} 6... Bf5 {[%clk 0:04:34.7]}
7. Nbc3 {[%clk 0:04:44.9]} 7... e6 {[%clk 0:04:32.4]} 8. Ng3 {[%clk 0:04:37.7]}
8... Bg6 {[%clk 0:04:26.5]} 9. h4 {[%clk 0:04:32.2]} 9... h6 {[%clk 0:04:23.3]}
10. Be3 {[%clk 0:04:25.5]} 10... Nge7 {[%clk 0:04:20.7]} 11. Bd3 {[%clk
0:04:23.5]} 11... Qb6 {[%clk 0:04:10.3]} 12. Bxg6 {[%clk 0:04:17.7]} 12... Nxg6
{[%clk 0:04:10.2]} 13. Qd2 {[%clk 0:04:12.1]} 13... Bb4 {[%clk 0:04:02.8]} 14.
O-O {[%clk 0:04:04.5]} 14... O-O {[%clk 0:03:52.6]} 15. h5 {[%clk 0:04:02.9]}
15... Nge7 {[%clk 0:03:50.7]} 16. Nge2 {[%clk 0:03:58.3]} 16... Nf5 {[%clk
0:03:46.1]} 17. a3 {[%clk 0:03:56.3]} 17... Bxc3 {[%clk 0:03:40.6]} 18. bxc3
{[%clk 0:03:54]} 18... Nxe3 {[%clk 0:03:38.9]} 19. Qxe3 {[%clk 0:03:50]} 19...
Ne7 {[%clk 0:03:35.9]} 20. Rfb1 {[%clk 0:03:42.8]} 20... Qc7 {[%clk 0:03:31.7]}
21. g4 {[%clk 0:03:39.9]} 21... b6 {[%clk 0:03:29.5]} 22. f4 {[%clk 0:03:31.3]}
22... Rac8 {[%clk 0:03:14.3]} 23. Rc1 {[%clk 0:03:28.7]} 23... Qd8 {[%clk
0:03:11.2]} 24. Ng3 {[%clk 0:03:25.3]} 24... Kh8 {[%clk 0:02:58.6]} 25. Kh2
{[%clk 0:03:12.5]} 25... f5 {[%clk 0:02:53.3]} 26. Qf3 {[%clk 0:03:02.4]} 26...
fxg4 {[%clk 0:02:49.9]} 27. Qxg4 {[%clk 0:03:02.3]} 27... Nf5 {[%clk 0:02:47]}
28. Nxf5 {[%clk 0:02:59.5]} 28... Rxf5 {[%clk 0:02:44]} 29. Rg1 {[%clk
0:02:54.6]} 29... Rc7 {[%clk 0:02:37.3]} 30. Qg6 {[%clk 0:02:45.4]} 30... Qh4+
{[%clk 0:02:23.1]} 31. Kg2 {[%clk 0:02:42.9]} 31... Rxf4 {[%clk 0:01:58.5]} 32.
Qe8+ {[%clk 0:02:35.2]} 32... Kh7 {[%clk 0:01:53.8]} 33. Qg6+ {[%clk 0:02:34.5]}
33... Kg8 {[%clk 0:01:52.5]} 34. Qe8+ {[%clk 0:02:31.1]} 34... Rf8 {[%clk
0:01:32.2]} 35. Qxe6+ {[%clk 0:02:29.5]} 35... Rcf7 {[%clk 0:01:31.5]} 36. Raf1
{[%clk 0:02:11.8]} 36... Qg5+ {[%clk 0:01:26.3]} 37. Kh1 {[%clk 0:02:09.3]}
37... Qxh5+ {[%clk 0:01:25.1]} 38. Kg2 {[%clk 0:02:08.1]} 38... Qg5+ {[%clk
0:01:21.1]} 39. Kh2 {[%clk 0:02:07.2]} 39... Qh4+ {[%clk 0:01:16.2]} 40. Kg2
{[%clk 0:02:05.2]} 40... Qe4+ {[%clk 0:01:14.3]} 41. Rf3 {[%clk 0:01:57]} 41...
Kh8 {[%clk 0:01:02.6]} 42. Rf1 {[%clk 0:01:52.6]} 42... Rxf3 {[%clk 0:00:51]}
43. Rh1 {[%clk 0:01:39.9]} 43... Rf2+ {[%clk 0:00:42.5]} 44. Kg1 {[%clk
0:01:38.6]} 44... Qg2# {[%clk 0:00:39.2]} 0-1

[Event "Live Chess"]
[Site "Chess.com"]
[Date "2023.05.20"]
[Round "-"]
[White "OceanFloater"]
[Black "bedsdrout"]
[Result "1-0"]
[WhiteElo "961"]
[BlackElo "378"]
[TimeControl "300"]
[EndTime "11:27:29 PDT"]
[Termination "OceanFloater won by checkmate"]

1. e4 {[%clk 0:04:55.6]} 1... e5 {[%clk 0:04:58.8]} 2. Nf3 {[%clk 0:04:54.9]}
2... Bb4 {[%clk 0:04:56.7]} 3. c3 {[%clk 0:04:53.5]} 3... Bc5 {[%clk 0:04:53.1]}
4. d4 {[%clk 0:04:51]} 4... Bb6 {[%clk 0:04:50.5]} 5. dxe5 {[%clk 0:04:48.9]}
5... Qe7 {[%clk 0:04:38.3]} 6. Bg5 {[%clk 0:04:47.2]} 6... Qc5 {[%clk 0:04:34]}
7. Qe2 {[%clk 0:04:33.7]} 7... f6 {[%clk 0:04:29.8]} 8. exf6 {[%clk 0:04:32.1]}
8... gxf6 {[%clk 0:04:26.1]} 9. Bh4 {[%clk 0:04:26.7]} 9... f5 {[%clk
0:04:23.3]} 10. exf5+ {[%clk 0:04:24.3]} 10... Ne7 {[%clk 0:04:09.5]} 11. Bxe7
{[%clk 0:04:19.2]} 11... d6 {[%clk 0:04:03.7]} 12. Bf6+ {[%clk 0:04:16.9]} 12...
Kf8 {[%clk 0:03:52.5]} 13. Bxh8 {[%clk 0:04:14.8]} 13... Kf7 {[%clk 0:03:48.3]}
14. Ng5+ {[%clk 0:04:12.4]} 14... Kf8 {[%clk 0:03:33.7]} 15. Nxh7+ {[%clk
0:03:57.1]} 15... Kg8 {[%clk 0:03:31.1]} 16. Nf6+ {[%clk 0:03:52.2]} 16... Kf7
{[%clk 0:03:27.7]} 17. Qh5+ {[%clk 0:03:45.6]} 17... Kf8 {[%clk 0:03:19.4]} 18.
Qh6+ {[%clk 0:03:40.1]} 18... Ke7 {[%clk 0:03:14.7]} 19. Qg7+ {[%clk 0:03:38.1]}
19... Kd8 {[%clk 0:03:10.9]} 20. Qf8# {[%clk 0:03:34.9]} 1-0

[Event "Live Chess"]
[Site "Chess.com"]
[Date "2023.05.20"]
[Round "-"]
[White "seabuck"]
[Black "Missedidea"]
[Result "0-1"]
[WhiteElo "1846"]
[BlackElo "1717"]
[TimeControl "300"]
[EndTime "11:27:38 PDT"]
[Termination "Missedidea won by checkmate"]

1. d4 {[%clk 0:04:58.8]} 1... Nf6 {[%clk 0:04:57.7]} 2. c4 {[%clk 0:04:57.1]}
2... g6 {[%clk 0:04:56]} 3. Nc3 {[%clk 0:04:56.1]} 3... Bg7 {[%clk 0:04:55.1]}
4. e4 {[%clk 0:04:55.2]} 4... d6 {[%clk 0:04:54.2]} 5. Be2 {[%clk 0:04:54.3]}
5... O-O {[%clk 0:04:53]} 6. Nf3 {[%clk 0:04:53.6]} 6... e5 {[%clk 0:04:51]} 7.
O-O {[%clk 0:04:51.7]} 7... Nc6 {[%clk 0:04:48.9]} 8. dxe5 {[%clk 0:04:50.2]}
8... dxe5 {[%clk 0:04:44.2]} 9. Be3 {[%clk 0:04:45.6]} 9... Ng4 {[%clk
0:04:32.1]} 10. Bc5 {[%clk 0:04:42]} 10... Re8 {[%clk 0:04:22.7]} 11. h3 {[%clk
0:04:40.7]} 11... Nf6 {[%clk 0:04:14.1]} 12. a3 {[%clk 0:04:35.9]} 12... h6
{[%clk 0:04:09.2]} 13. Be3 {[%clk 0:04:34.4]} 13... Be6 {[%clk 0:04:05.6]} 14.
Qc2 {[%clk 0:04:29.8]} 14... Qe7 {[%clk 0:04:02.4]} 15. b4 {[%clk 0:04:25.9]}
15... b6 {[%clk 0:04:00.4]} 16. b5 {[%clk 0:04:14.6]} 16... Na5 {[%clk
0:03:55.4]} 17. Nd5 {[%clk 0:04:12.7]} 17... Bxd5 {[%clk 0:03:49.5]} 18. cxd5
{[%clk 0:04:07.5]} 18... Rac8 {[%clk 0:03:34.2]} 19. Rfd1 {[%clk 0:03:53.3]}
19... Kh7 {[%clk 0:03:31.8]} 20. Qc3 {[%clk 0:03:37]} 20... Nh5 {[%clk
0:03:29.6]} 21. Rac1 {[%clk 0:03:30.7]} 21... Nf4 {[%clk 0:03:25.9]} 22. Bf1
{[%clk 0:03:24.4]} 22... f5 {[%clk 0:03:18.8]} 23. exf5 {[%clk 0:03:11.2]} 23...
gxf5 {[%clk 0:03:16.8]} 24. Bxf4 {[%clk 0:03:02]} 24... exf4 {[%clk 0:03:14.1]}
25. Qc2 {[%clk 0:02:53.5]} 25... Qf6 {[%clk 0:03:05.6]} 26. Bd3 {[%clk
0:02:49.5]} 26... Rf8 {[%clk 0:02:58.9]} 27. Re1 {[%clk 0:02:43.4]} 27... Rce8
{[%clk 0:02:52.4]} 28. Rxe8 {[%clk 0:02:41]} 28... Rxe8 {[%clk 0:02:50.7]} 29.
Bxf5+ {[%clk 0:02:39.3]} 29... Kh8 {[%clk 0:02:47]} 30. Be6 {[%clk 0:02:34.4]}
30... Re7 {[%clk 0:02:44.7]} 31. Qd3 {[%clk 0:02:21.7]} 31... Nb7 {[%clk
0:02:41.6]} 32. Nd4 {[%clk 0:02:14.9]} 32... Nc5 {[%clk 0:02:35.6]} 33. Rxc5
{[%clk 0:02:07.7]} 33... bxc5 {[%clk 0:02:33.3]} 34. Nf5 {[%clk 0:02:06.8]}
34... Re8 {[%clk 0:02:22.4]} 35. Qc4 {[%clk 0:02:00.5]} 35... Qa1+ {[%clk
0:02:15.4]} 36. Kh2 {[%clk 0:01:58.6]} 36... Qe5 {[%clk 0:02:08.7]} 37. f3
{[%clk 0:01:51.9]} 37... Rxe6 {[%clk 0:02:02.8]} 38. Nxg7 {[%clk 0:01:47.1]}
38... Rg6 {[%clk 0:01:59.6]} 39. Ne6 {[%clk 0:01:38.8]} 39... Qb2 {[%clk
0:01:55.5]} 40. Nxf4 {[%clk 0:01:32.4]} 40... Qe5 {[%clk 0:01:53.9]} 41. Kh1
{[%clk 0:01:20.9]} 41... Rg7 {[%clk 0:01:47.4]} 42. Ne6 {[%clk 0:01:17.1]} 42...
Qe1+ {[%clk 0:01:44.3]} 43. Kh2 {[%clk 0:01:15.3]} 43... Qg3+ {[%clk 0:01:43.2]}
44. Kg1 {[%clk 0:01:02]} 44... Qxg2# {[%clk 0:01:42.2]} 0-1

[Event "Live Chess"]
[Site "Chess.com"]
[Date "2023.05.20"]
[Round "-"]
[White "bristolunichess"]
[Black "whitedjohn"]
[Result "1-0"]
[WhiteElo "1843"]
[BlackElo "1670"]
[TimeControl "300"]
[EndTime "11:27:38 PDT"]
[Termination "bristolunichess won by checkmate"]

1. e4 {[%clk 0:04:58.8]} 1... Nf6 {[%clk 0:04:57.4]} 2. e5 {[%clk 0:04:54.7]}
2... Nd5 {[%clk 0:04:55.2]} 3. c4 {[%clk 0:04:53.6]} 3... Nb6 {[%clk 0:04:52.6]}
4. d4 {[%clk 0:04:46.1]} 4... d6 {[%clk 0:04:50]} 5. exd6 {[%clk 0:04:43.9]}
5... exd6 {[%clk 0:04:48]} 6. f4 {[%clk 0:04:38.4]} 6... Be7 {[%clk 0:04:33.9]}
7. Nf3 {[%clk 0:04:35.2]} 7... O-O {[%clk 0:04:29.1]} 8. Nc3 {[%clk 0:04:29.9]}
8... Bg4 {[%clk 0:04:26.8]} 9. b3 {[%clk 0:04:26.4]} 9... Nc6 {[%clk 0:04:25]}
10. Be2 {[%clk 0:04:25.1]} 10... d5 {[%clk 0:04:19.6]} 11. c5 {[%clk 0:04:22.1]}
11... Nc8 {[%clk 0:04:18.1]} 12. Ne5 {[%clk 0:04:16.5]} 12... Bxe2 {[%clk
0:04:13.2]} 13. Nxe2 {[%clk 0:04:14.6]} 13... Bf6 {[%clk 0:04:04.8]} 14. O-O
{[%clk 0:03:37.7]} 14... N6e7 {[%clk 0:04:00.4]} 15. g4 {[%clk 0:03:21.9]} 15...
g6 {[%clk 0:03:56.2]} 16. f5 {[%clk 0:03:15.7]} 16... c6 {[%clk 0:03:29.3]} 17.
Bh6 {[%clk 0:03:08.5]} 17... Re8 {[%clk 0:03:21.6]} 18. Nf4 {[%clk 0:02:51.8]}
18... Bxe5 {[%clk 0:03:11.1]} 19. dxe5 {[%clk 0:02:49.7]} 19... gxf5 {[%clk
0:03:09.4]} 20. gxf5 {[%clk 0:02:47.5]} 20... Nxf5 {[%clk 0:03:07.7]} 21. Qg4+
{[%clk 0:02:43.9]} 21... Ng7 {[%clk 0:03:02.9]} 22. Qxg7# {[%clk 0:02:40.8]} 1-0

[Event "Live Chess"]
[Site "Chess.com"]
[Date "2023.05.20"]
[Round "-"]
[White "WilliamofOrange16th"]
[Black "ReceptiveCamel"]
[Result "1-0"]
[WhiteElo "1882"]
[BlackElo "626"]
[TimeControl "300"]
[EndTime "11:27:46 PDT"]
[Termination "WilliamofOrange16th won by checkmate"]

1. b3 {[%clk 0:04:57.4]} 1... e5 {[%clk 0:04:56.8]} 2. Bb2 {[%clk 0:04:56.8]}
2... Nf6 {[%clk 0:04:53.1]} 3. Bxe5 {[%clk 0:04:54.6]} 3... Ng4 {[%clk
0:04:50.4]} 4. Bb2 {[%clk 0:04:52.2]} 4... Bc5 {[%clk 0:04:45.8]} 5. e3 {[%clk
0:04:50.6]} 5... Nxf2 {[%clk 0:04:44.2]} 6. Kxf2 {[%clk 0:04:49.2]} 6... Qf6+
{[%clk 0:04:42.6]} 7. Bxf6 {[%clk 0:04:46.3]} 7... gxf6 {[%clk 0:04:36.8]} 8. d4
{[%clk 0:04:43.8]} 8... Bb4 {[%clk 0:04:33.9]} 9. c3 {[%clk 0:04:42.8]} 9... Ba3
{[%clk 0:04:30.3]} 10. Nd2 {[%clk 0:04:40.9]} 10... Bb2 {[%clk 0:04:27.6]} 11.
Rb1 {[%clk 0:04:37.3]} 11... Bxc3 {[%clk 0:04:26.3]} 12. Bc4 {[%clk 0:04:36.7]}
12... Bxd2 {[%clk 0:04:24.7]} 13. Qxd2 {[%clk 0:04:36.1]} 13... d6 {[%clk
0:04:23.1]} 14. Nf3 {[%clk 0:04:33.2]} 14... Bg4 {[%clk 0:04:21.6]} 15. e4
{[%clk 0:04:30.3]} 15... Bxf3 {[%clk 0:04:19.9]} 16. gxf3 {[%clk 0:04:30.2]}
16... O-O {[%clk 0:04:18.8]} 17. Qh6 {[%clk 0:04:25.8]} 17... c5 {[%clk
0:04:12.4]} 18. Rhg1+ {[%clk 0:04:25]} 18... Kh8 {[%clk 0:04:10.8]} 19. Qxf6#
{[%clk 0:04:24.6]} 1-0

[Event "Live Chess"]
[Site "Chess.com"]
[Date "2023.05.20"]
[Round "-"]
[White "Singapourfeuj"]
[Black "Davidagye"]
[Result "1-0"]
[WhiteElo "2239"]
[BlackElo "1674"]
[TimeControl "300"]
[EndTime "11:27:46 PDT"]
[Termination "Singapourfeuj won by resignation"]

1. d4 {[%clk 0:04:59.4]} 1... Nf6 {[%clk 0:04:58.7]} 2. Nc3 {[%clk 0:04:58]}
2... e5 {[%clk 0:04:58.2]} 3. dxe5 {[%clk 0:04:57.1]} 3... Ng4 {[%clk 0:04:57]}
4. Bf4 {[%clk 0:04:54.8]} 4... Nc6 {[%clk 0:04:55.7]} 5. Nf3 {[%clk 0:04:53.6]}
5... Bb4 {[%clk 0:04:52]} 6. e3 {[%clk 0:04:48.5]} 6... Qe7 {[%clk 0:04:49.9]}
7. Be2 {[%clk 0:04:46.1]} 7... Ncxe5 {[%clk 0:04:47.8]} 8. O-O {[%clk
0:04:43.9]} 8... a5 {[%clk 0:04:45.4]} 9. Nd5 {[%clk 0:04:42.2]} 9... Qe6 {[%clk
0:04:41.2]} 10. Nxc7+ {[%clk 0:04:40.1]} 10... Kf8 {[%clk 0:04:38.2]} 11. Nxe6+
{[%clk 0:04:38.4]} 1-0